bitfinex/quotes_SOLUSD_20251120
["timestamp","ask_amount","ask_price","bid_price","bid_amount"]
[1763673867855,0.69,135.21,135.14,2.74997336]
[1763673868059,0.69,135.21,135.17,7.60865918]
[1763673868267,8.29865918,135.21,135.17,7.60865918]
[1763673868575,0.69,135.21,135.17,7.60865918]
[1763673868772,0.69,135.2,135.14,0.21]
[1763673868946,0.69,135.2,135.16,7.60865918]
[1763673869147,0.69,135.2,135.15,7.60865918]
[1763673869148,8.29865918,135.2,135.15,7.60865918]
[1763673869354,5.61586069,135.19,135.15,7.60865918]
[1763673869572,0.69,135.19,135.15,7.60865918]
[1763673869747,0.69,135.18,135.15,7.60865918]
[1763673870961,7.60865918,135.2,135.12,2.01]
[1763673870962,0.68,135.21,135.17,7.60865918]
[1763673871163,0.68,135.21,135.18,7.60865918]
[1763673871164,4.93782779,135.2,135.18,7.60865918]
[1763673873668,0.68,135.19,135.17,7.60865918]
[1763673874175,4.96110826,135.18,135.17,7.60865918]
[1763673874549,4.96110826,135.18,135.16,7.60865918]
[1763673874744,0.68,135.19,135.16,7.60865918]
[1763673874965,4.96110818,135.18,135.16,7.60865918]
[1763673875172,4.96110818,135.17,135.16,7.60865918]
[1763673876071,4.96110818,135.17,135.14,2.01]
[1763673876072,4.96110818,135.17,135.14,1.8]
[1763673876258,0.68,135.19,135.16,7.60865918]
[1763673876449,10.43649935,135.18,135.17,7.60865918]
[1763673876875,10.43649935,135.18,135.15,2.01]
[1763673877170,0.68,135.19,135.17,7.60865918]
[1763673877361,10.4455833,135.18,135.17,7.60865918]
[1763673877964,10.4455833,135.18,135.12,79.32096]
[1763673878275,10.44558459,135.17,135.14,7.60865918]
[1763673878476,4.97885788,135.16,135.14,7.60865918]
[1763673878659,0.68,135.17,135.14,7.60865918]
[1763673878999,4.97956421,135.16,135.15,7.60865918]
[1763673879178,0.68,135.17,135.15,7.60865918]
[1763673879478,0.68,135.17,135.16,7.60865918]
[1763673879653,11.12738663,135.17,135.16,7.60865918]
[1763673880174,5.65958888,135.17,135.16,7.60865918]
[1763673880379,4.97958888,135.17,135.16,7.60865918]
[1763673880678,0.68,135.2,135.16,7.60865918]
[1763673880879,10.44749921,135.19,135.16,7.60865918]
[1763673881057,4.9796767,135.18,135.16,7.60865918]
[1763673881265,0.68,135.19,135.16,7.60865918]
[1763673881465,0.68,135.2,135.16,7.60865918]
[1763673881667,10.44722327,135.19,135.16,7.60865918]
[1763673881868,0.68,135.2,135.16,7.60865918]
[1763673882062,11.11797552,135.19,135.16,7.60865918]
[1763673882264,0.68,135.19,135.16,7.60865918]
[1763673882470,0.68,135.18,135.16,7.60865918]
[1763673885063,5.45882053,135.2,135.17,7.60865918]
[1763673885371,1.8,135.23,135.18,7.60865918]
[1763673885589,11.11949362,135.22,135.18,7.60865918]
[1763673885769,10.43949362,135.21,135.18,7.60865918]
[1763673886099,0.68,135.21,135.18,7.60865918]
[1763673886281,0.68,135.2,135.18,7.60865918]
[1763673886660,5.45971608,135.21,135.18,7.60865918]
[1763673886868,8.28865918,135.23,135.18,7.60865918]
[1763673887060,10.43996192,135.22,135.18,7.60865918]
[1763673887258,0.68,135.22,135.18,7.60865918]
[1763673887480,0.68,135.21,135.13,0.74002812]
[1763673887767,0.68,135.21,135.14,0.21]
[1763673887972,0.68,135.21,135.17,7.60865918]
[1763673890760,0.68,135.21,135.16,7.60865918]
[1763673891162,10.4535435,135.2,135.16,7.60865918]
[1763673891468,0.68,135.21,135.16,7.60865918]
[1763673891673,11.12494481,135.2,135.16,7.60865918]
[1763673891985,0.67,135.2,135.17,7.60865918]
[1763673893275,7.60865918,135.23,135.19,7.60865918]
[1763673893276,0.67,135.23,135.19,7.60865918]
[1763673893583,0.67,135.23,135.2,7.60865918]
[1763673894166,0.67,135.23,135.16,0.21]
[1763673894167,0.67,135.23,135.19,7.60865918]
[1763673894365,0.67,135.23,135.15,0.21]
[1763673894681,10.45330787,135.22,135.18,7.60865918]
[1763673894868,8.27865918,135.23,135.17,7.60865918]
[1763673894869,6.13721279,135.21,135.17,7.60865918]
[1763673895075,0.67,135.21,135.18,7.60865918]
[1763673895588,0.67,135.21,135.19,7.60865918]
[1763673895895,11.12590322,135.23,135.2,7.60865918]
[1763673896094,0.67,135.23,135.2,7.60865918]
[1763673896392,0.67,135.22,135.2,7.60865918]
[1763673896776,0.67,135.22,135.2,11.91855969]
[1763673897285,0.67,135.22,135.19,11.91855969]
[1763673897484,0.67,135.22,135.18,11.91855969]
[1763673897889,0.67,135.22,135.19,11.91855969]
[1763673900078,0.67,135.22,135.2,11.91855969]
[1763673900270,1.8,135.24,135.21,11.91855969]
[1763673900479,10.4672683,135.23,135.21,11.91855969]
[1763673900678,10.4672683,135.23,135.17,0.21]
[1763673900679,0.67,135.25,135.22,11.91855969]
[1763673900878,10.4655226,135.24,135.22,11.91855969]
[1763673901084,0.67,135.25,135.22,11.91855969]
[1763673901284,0.67,135.25,135.2,13.92855969]
[1763673901800,0.67,135.25,135.2,1.8]
[1763673902091,11.91855969,135.24,135.17,11.91855969]
[1763673902393,11.91855969,135.22,135.18,1.8]
[1763673902773,0.67,135.21,135.18,1.8]
[1763673904389,12.58855969,135.21,135.14,0.21]
[1763673904588,11.91855969,135.2,135.14,12.12855969]
[1763673904788,0.67,135.2,135.15,1.8]
[1763673905103,12.58855969,135.2,135.15,1.8]
[1763673905482,0.67,135.19,135.15,1.8]
[1763673905793,0.67,135.19,135.15,0.21]
[1763673906001,0.67,135.19,135.14,1.8]
[1763673906166,0.67,135.19,135.14,13.92855969]
[1763673906877,0.67,135.19,135.14,2.01]
[1763673907500,11.91855969,135.18,135.11,12.12855969]
[1763673907691,11.91855969,135.16,135.09,12.32855969]
[1763673907898,11.91855969,135.16,135.1,1.8]
[1763673908090,0.67,135.15,135.1,1.8]
[1763673908403,12.58855969,135.15,135.09,0.2]
[1763673908591,11.91855969,135.13,135.09,0.2]
[1763673908900,11.91855969,135.11,135.09,0.2]
[1763673909395,0.67,135.1,135.09,0.2]
[1763673910486,12.58855969,135.1,135.09,0.2]
[1763673911286,14.38855969,135.1,135.05,0.2]
[1763673911486,11.91855969,135.06,135.05,0.2]
[1763673911815,0.67,135.09,135.05,0.2]
[1763673912003,12.58855969,135.09,135.05,0.2]
[1763673912378,12.58855969,135.08,135.05,0.2]
[1763673912587,11.91855969,135.06,135.05,0.2]
[1763673913077,0.67,135.06,135.05,0.2]
[1763673913278,12.58855969,135.06,135.05,0.2]
[1763673914177,30.03951969,135.09,135.05,0.2]
[1763673914378,0.67,135.08,135.05,0.2]
[1763673914688,11.91855969,135.06,135.05,0.2]
[1763673915202,12.58855969,135.06,135.05,0.2]
[1763673915979,0.67,135.06,135.05,0.2]
[1763673916196,12.58855969,135.06,135.05,0.2]
[1763673917110,11.91855969,135.07,135.05,0.2]
[1763673917404,11.91855969,135.06,135.05,0.2]
[1763673917793,0.67,135.06,135.05,0.2]
[1763673918000,12.58855969,135.06,135.05,0.2]
[1763673918303,9.78882769,135.09,135.05,0.2]
[1763673918304,0.67,135.09,135.05,0.2]
[1763673918601,56.20235797,135.14,135.05,0.2]
[1763673918797,12.58855969,135.09,135.05,0.2]
[1763673919302,12.58855969,135.08,135.05,0.2]
[1763673919507,11.91855969,135.07,135.05,0.2]
[1763673919816,12.58855969,135.07,135.05,0.2]
[1763673920103,12.58855969,135.06,135.05,0.2]
[1763673920806,0.7,135.08,135.05,0.2]
[1763673920988,5.70443541,135.08,135.05,0.2]
[1763673921384,0.7,135.07,135.05,0.2]
[1763673921604,5.70443541,135.07,135.05,0.2]
[1763673921997,0.7,135.06,135.05,0.2]
[1763673923011,5.70443541,135.06,135.05,0.2]
[1763673923216,7.50443541,135.06,135.02,0.2]
[1763673923384,5.00443541,135.03,135.02,0.2]
[1763673923895,72.29769851,135.03,135.02,0.2]
[1763673924094,67.2932631,135.03,135.02,0.2]
[1763673924501,72.29769851,135.03,135.02,0.2]
[1763673924703,140.41865851,135.03,135.02,0.2]
[1763673924902,142.37408469,135.03,135.02,0.2]
[1763673925120,130.085257,135.01,135.0,0.2]
[1763673925320,142.049554,135.01,135.0,0.2]
[1763673925504,142.749554,135.01,135.0,0.2]
[1763673926420,152.53838169,135.01,135.0,0.2]
[1763673926624,128.60978769,135.01,135.0,0.2]
[1763673926792,152.53838169,135.01,135.0,0.2]
[1763673927192,30.785257,135.01,135.0,0.2]
[1763673927391,12.664297,135.01,135.0,0.2]
[1763673928528,30.785257,135.01,135.0,0.2]
[1763673932497,0.7,135.01,135.0,0.2]
[1763673932697,0.69,135.07,135.0,0.9]
[1763673932912,11.964297,135.03,135.0,0.9]
[1763673933396,11.964297,135.02,135.0,0.9]
[1763673933597,11.964297,135.01,135.0,0.9]
[1763673933917,11.964297,135.02,135.0,0.9]
[1763673934318,11.964297,135.01,135.0,0.2]
[1763673935516,14.454297,135.01,135.0,0.2]
[1763673935706,24.24312469,135.01,135.0,0.2]
[1763673938033,36.20742169,135.01,135.0,0.2]
[1763673938436,20.61096,135.01,135.0,0.2]
[1763673938614,42.36408469,135.01,135.0,0.2]
[1763673938813,32.575257,135.01,135.0,0.2]
[1763673939419,9.78882769,135.0,134.97,0.2]
[1763673939629,11.964297,134.98,134.97,0.2]
[1763673940033,90.56408469,134.98,134.97,0.2]
[1763673940223,50.0,135.01,134.97,0.2]
[1763673940557,30.085257,134.98,134.97,0.2]
[1763673940722,31.885257,134.98,134.97,0.2]
[1763673940908,32.575257,134.98,134.97,0.2]
[1763673942317,13.764297,134.98,134.97,0.2]
[1763673942522,14.454297,134.98,134.97,0.2]
[1763673942724,12.654297,134.98,134.97,0.2]
[1763673943126,11.964297,134.98,134.97,0.2]
[1763673944124,11.964297,134.99,134.97,0.2]
[1763673944325,11.964297,134.99,134.97,0.9]
[1763673944525,11.964297,134.98,134.97,0.2]
[1763673949145,5.62055492,135.0,134.97,0.2]
[1763673949440,11.964297,134.98,134.97,0.2]
[1763673951045,5.95130109,134.98,134.97,0.2]
[1763673951551,10.89348312,134.98,134.97,0.2]
[1763673952119,4.94218203,134.98,134.97,0.2]
[1763673952324,16.90647903,134.98,134.97,0.2]
[1763673952732,11.964297,134.98,134.97,0.2]
[1763673952950,1.8,134.99,134.97,0.87]
[1763673953136,11.964297,134.98,134.97,0.87]
[1763673953445,16.92588232,134.98,134.97,0.87]
[1763673953641,11.964297,134.98,134.97,0.87]
[1763673954347,11.964297,134.98,134.97,0.2]
[1763673954749,17.64951897,134.98,134.97,0.2]
[1763673955626,22.91292426,134.98,134.97,0.2]
[1763673957024,18.68579646,134.98,134.97,0.2]
[1763673957752,18.63154404,134.98,134.97,0.2]
[1763673958851,14.30706697,134.98,134.97,0.2]
[1763673959024,1.63932047,134.98,134.97,0.2]
[1763673959230,9.2791404,134.98,134.97,0.2]
[1763673959454,18.14864762,134.98,134.97,0.2]
[1763673959653,36.26960762,134.98,134.97,0.2]
[1763673960027,86.26960762,134.98,134.97,0.2]
[1763673960351,9.78882769,134.95,134.93,0.2]
[1763673960655,59.78882769,134.93,134.91,0.2]
[1763673960835,50.0,134.89,134.86,0.2]
[1763673961150,7.63981993,134.87,134.86,0.2]
[1763673962455,0.72,134.87,134.86,0.2]
[1763673962843,8.35981993,134.87,134.86,0.2]
[1763673963243,3.26352733,134.87,134.86,0.2]
[1763673963768,3.26352733,134.87,134.79,7.63981993]
[1763673963974,7.63981993,134.84,134.79,7.63981993]
[1763673964258,7.63981993,134.83,134.76,11.56882769]
[1763673964436,7.63981993,134.83,134.79,7.63981993]
[1763673964639,1.78,134.86,134.8,7.63981993]
[1763673964833,7.63981993,134.85,134.81,7.63981993]
[1763673965038,7.63981993,134.84,134.8,7.63981993]
[1763673965248,3.3570016,134.84,134.8,7.63981993]
[1763673965451,7.63981993,134.83,134.79,7.63981993]
[1763673965651,7.63981993,134.83,134.79,26.43077993]
[1763673965848,7.63981993,134.84,134.8,8.30981993]
[1763673966048,7.63981993,134.86,134.81,7.63981993]
[1763673966246,7.63981993,134.86,134.81,8.30981993]
[1763673966612,50.0,134.93,134.84,7.63981993]
[1763673966743,50.0,134.93,134.82,20.57096]
[1763673966744,7.63981993,134.87,134.83,7.63981993]
[1763673966943,50.0,134.93,134.84,18.12096]
[1763673966944,7.63981993,134.88,134.84,18.12096]
[1763673967184,7.63981993,134.88,134.84,18.79096]
[1763673967357,3.91714694,134.88,134.85,0.67]
[1763673967658,7.63981993,134.86,134.81,28.23077993]
[1763673967859,7.63981993,134.88,134.83,7.63981993]
[1763673968258,7.63981993,134.88,134.84,0.67]
[1763673968636,7.63981993,134.88,134.84,18.79096]
[1763673969057,7.63981993,134.88,134.85,0.67]
[1763673969364,3.5239796,134.88,134.85,0.67]
[1763673969936,7.63981993,134.87,134.85,0.67]
[1763673970144,7.63981993,134.87,134.84,18.12096]
[1763673970145,50.0,134.91,134.82,1.8]
[1763673970459,7.63981993,134.85,134.82,2.47]
[1763673970648,50.0,134.91,134.82,2.47]
[1763673970851,7.63981993,134.85,134.82,2.47]
[1763673971252,7.63981993,134.85,134.83,0.67]
[1763673971861,7.63981993,134.86,134.83,0.67]
[1763673973447,100.0,134.91,134.83,0.67]
[1763673973770,7.63981993,134.86,134.83,0.67]
[1763673974070,7.63981993,134.85,134.83,0.67]
[1763673974250,7.63981993,134.86,134.83,0.67]
[1763673975149,7.63981993,134.86,134.83,2.45]
[1763673975558,7.63981993,134.85,134.83,0.67]
[1763673976555,7.63981993,134.84,134.82,18.12096]
[1763673976757,3.21389476,134.83,134.82,18.12096]
[1763673977172,3.21389476,134.84,134.82,18.12096]
[1763673977664,3.21389476,134.83,134.8,2.45]
[1763673977964,3.21389476,134.83,134.8,20.57096]
[1763673978771,7.65255678,134.83,134.8,20.57096]
[1763673978950,7.65255678,134.84,134.8,20.57096]
[1763673979145,7.65255678,134.84,134.8,18.79096]
[1763673980378,7.65255678,134.83,134.8,18.79096]
[1763673981542,0.37412528,134.83,134.8,18.79096]
[1763673983785,7.65255678,134.82,134.76,22.30234546]
[1763673984085,7.65255678,134.79,134.76,1.8]
[1763673984301,7.65255678,134.78,134.76,1.8]
[1763673984465,100.0,134.84,134.76,1.8]
[1763673984670,50.0,134.84,134.77,1.8]
[1763673984885,7.65255678,134.83,134.77,2.49]
[1763673985089,18.12096,134.86,134.78,0.69]
[1763673985294,7.65255678,134.84,134.78,0.69]
[1763673985480,7.65255678,134.84,134.8,18.12096]
[1763673985781,7.65255678,134.83,134.8,20.61096]
[1763673986200,7.65255678,134.84,134.8,18.81096]
[1763673986502,7.65255678,134.82,134.8,20.61096]
[1763673987294,7.65255678,134.82,134.8,18.81096]
[1763673987504,7.65255678,134.82,134.8,20.61096]
[1763673987663,1.47552651,134.82,134.8,20.61096]
[1763673988603,50.0,134.87,134.8,20.61096]
[1763673988604,7.65255678,134.84,134.81,18.81096]
[1763673988973,7.65255678,134.84,134.82,0.69]
[1763673989495,7.65255678,134.88,134.8,1.8]
[1763673989496,7.65255678,134.83,134.8,1.8]
[1763673989673,7.65255678,134.81,134.8,1.8]
[1763673989872,1.22409005,134.81,134.8,1.8]
[1763673991078,7.65255678,134.81,134.79,19.92096]
[1763673991290,7.65255678,134.83,134.8,0.7]
[1763673991896,3.41784276,134.83,134.8,0.7]
[1763673992294,7.65255678,134.82,134.8,0.7]
[1763673992912,7.65255678,134.83,134.81,18.12096]
[1763673993285,7.65255678,134.83,134.82,1.8]
[1763673993497,7.65255678,134.83,134.82,2.5]
[1763673993695,7.65255678,134.84,134.82,2.5]
[1763673993894,1.44368031,134.83,134.82,20.62096]
[1763673994613,1.44368031,134.83,134.82,2.5]
[1763673995314,7.65255678,134.84,134.82,2.5]
[1763673995499,7.65255678,134.86,134.82,20.62096]
[1763673995708,10.46882769,134.92,134.82,20.62096]
[1763673995709,4.96184032,134.88,134.83,8.35255678]
[1763673995911,4.96184032,134.88,134.79,27.90978769]
[1763673995912,9.78882769,134.9,134.79,10.48882769]
[1763673996219,7.65255678,134.84,134.8,20.62096]
[1763673996725,7.65255678,134.84,134.81,0.7]
[1763673996928,7.65255678,134.85,134.81,0.7]
[1763673997815,7.65255678,134.86,134.82,18.12096]
[1763673998130,4.58861876,134.86,134.83,1.8]
[1763673998307,4.58861876,134.86,134.83,2.5]
[1763673999397,7.65255678,134.85,134.83,2.5]
[1763673999601,7.65255678,134.84,134.83,1.8]
[1763674000806,3.21433098,134.84,134.83,1.8]
[1763674001223,3.21433098,134.84,134.82,1.8]
[1763674001512,3.21433098,134.84,134.8,18.12096]
[1763674001513,3.21433098,134.83,134.81,0.7]
[1763674002024,3.21433098,134.83,134.82,1.8]
[1763674002528,3.21433098,134.83,134.82,2.5]
[1763674002821,3.21433098,134.84,134.82,2.5]
[1763674003399,3.21433098,134.83,134.82,2.5]
[1763674003605,3.21433098,134.83,134.8,18.12096]
[1763674003942,3.21433098,134.83,134.82,1.8]
[1763674004425,3.21433098,134.83,134.82,2.5]
[1763674004625,3.21433098,134.85,134.82,2.5]
[1763674004827,3.21433098,134.86,134.82,2.5]
[1763674005820,50.0,134.88,134.83,0.7]
[1763674006008,53.21433098,134.88,134.83,0.7]
[1763674006209,3.21433098,134.88,134.83,0.7]
[1763674008625,3.21433098,134.87,134.83,0.7]
[1763674008928,3.21433098,134.88,134.83,0.7]
[1763674009226,3.21433098,134.87,134.83,0.7]
[1763674009437,3.21433098,134.88,134.83,0.7]
[1763674009816,3.21433098,134.89,134.83,0.7]
[1763674010011,3.21433098,134.91,134.86,18.12096]
[1763674010215,9.78882769,134.94,134.87,1.8]
[1763674010543,9.78882769,134.95,134.87,2.5]
[1763674010848,3.21433098,134.91,134.88,0.7]
[1763674011149,3.21433098,134.9,134.88,0.7]
[1763674011446,18.12096,134.94,134.85,3.21433098]
[1763674011447,3.21433098,134.89,134.86,0.7]
[1763674011621,3.21433098,134.87,134.83,0.7]
[1763674011821,3.21433098,134.87,134.84,2.48]
[1763674012022,3.21433098,134.88,134.84,2.48]
[1763674012235,3.21433098,134.87,134.84,2.48]
[1763674012710,3.21433098,134.87,134.85,0.7]
[1763674013224,3.21433098,134.89,134.85,0.7]
[1763674013631,3.21433098,134.88,134.85,0.7]
[1763674014026,3.21433098,134.87,134.85,20.60096]
[1763674014419,3.21433098,134.86,134.85,0.7]
[1763674015236,3.21433098,134.87,134.85,0.7]
[1763674015651,3.21433098,134.86,134.85,0.7]
[1763674015855,3.21433098,134.87,134.85,0.7]
[1763674016022,3.21433098,134.86,134.85,0.7]
[1763674016531,4.99388099,134.91,134.85,0.7]
[1763674016532,0.87677856,134.91,134.85,0.7]
[1763674016733,3.21433098,134.88,134.85,0.7]
[1763674016931,3.21433098,134.86,134.84,18.12096]
[1763674017153,3.21433098,134.87,134.84,18.82096]
[1763674017350,3.21433098,134.87,134.85,0.7]
[1763674017554,0.87677856,134.91,134.85,0.7]
[1763674017767,3.21433098,134.88,134.85,0.7]
[1763674018278,3.21433098,134.87,134.85,0.7]
[1763674018440,3.21433098,134.88,134.85,0.7]
[1763674019029,3.21433098,134.87,134.85,0.7]
[1763674019437,3.21433098,134.88,134.85,0.7]
[1763674019651,3.21433098,134.87,134.85,0.7]
[1763674019947,3.21433098,134.88,134.85,0.7]
[1763674020855,5.01865841,134.88,134.85,0.7]
[1763674021028,5.01865841,134.87,134.85,0.7]
[1763674021228,5.01865841,134.88,134.85,0.7]
[1763674022033,50.0,134.94,134.86,9.78882769]
[1763674022236,8.22646294,134.97,134.86,11.56882769]
[1763674022237,5.01865841,134.91,134.86,11.56882769]
[1763674022449,5.01865841,134.96,134.87,0.7]
[1763674022639,5.01865841,134.91,134.87,0.7]
[1763674023041,5.01865841,134.89,134.87,0.7]
[1763674023936,5.01865841,134.88,134.85,1.78]
[1763674024136,5.01865841,134.88,134.85,2.48]
[1763674024350,5.01865841,134.88,134.86,0.7]
[1763674025349,18.12096,134.93,134.86,0.7]
[1763674025534,5.01865841,134.9,134.86,0.7]
[1763674025937,5.01865841,134.91,134.86,10.48882769]
[1763674026147,18.12096,134.95,134.86,10.48882769]
[1763674026355,5.01865841,134.92,134.9,18.12096]
[1763674026535,0.14,135.0,134.91,0.7]
[1763674026738,5.01865841,134.96,134.92,19.90096]
[1763674026937,5.01865841,134.95,134.92,19.90096]
[1763674027136,5.01865841,134.95,134.92,20.60096]
[1763674027442,5.01865841,134.95,134.93,0.7]
[1763674027636,5.01865841,134.96,134.93,0.7]
[1763674028564,0.21324235,134.94,134.93,0.7]
[1763674028779,0.14216157,134.95,134.93,0.7]
[1763674029272,5.16081998,134.95,134.93,0.7]
[1763674029477,5.16081998,134.93,134.92,18.12096]
[1763674029854,0.14216157,134.93,134.92,18.12096]
[1763674030055,5.16081998,134.93,134.92,18.12096]
[1763674030578,0.14216157,134.93,134.92,18.12096]
[1763674030778,0.1,135.0,134.93,0.7]
[1763674030976,5.01865841,134.96,134.93,2.48]
[1763674031171,5.01865841,134.95,134.93,2.48]
[1763674031374,5.01865841,134.94,134.93,2.48]
[1763674031668,5.01865841,134.94,134.89,9.78882769]
[1763674031669,5.01865841,134.94,134.91,2.48]
[1763674031865,5.01865841,134.92,134.91,2.48]
[1763674032064,5.01865841,134.93,134.91,2.48]
[1763674032572,5.01865841,134.92,134.89,0.7]
[1763674032871,2.76282214,134.9,134.88,0.7]
[1763674033663,5.01865841,134.9,134.88,18.82096]
[1763674033968,5.01865841,134.9,134.88,20.60096]
[1763674034166,64.8074861,134.96,134.88,19.90096]
[1763674034379,5.01865841,134.91,134.89,0.7]
[1763674034768,0.14216157,134.9,134.89,0.7]
[1763674034978,5.01865841,134.9,134.89,0.7]
[1763674035178,5.23190076,134.91,134.89,0.7]
[1763674036958,24.36891,135.0,134.93,18.12096]
[1763674036959,0.1,135.0,134.93,18.12096]
[1763674037282,5.01865841,134.94,134.89,0.5579]
[1763674037585,5.01865841,134.93,134.9,1.78]
[1763674037982,5.01865841,134.93,134.9,19.90096]
[1763674038489,14.76229067,134.98,134.9,18.12096]
[1763674038782,11.97381002,134.93,134.9,18.12096]
[1763674038991,5.25765107,134.93,134.9,18.12096]
[1763674039175,5.25765107,134.93,134.9,18.82096]
[1763674039563,0.21324235,134.96,134.86,0.7]
[1763674039564,11.97381002,134.91,134.86,0.7]
[1763674039767,11.97381002,134.91,134.88,19.90096]
[1763674039987,11.97381002,134.91,134.86,0.7]
[1763674040191,11.97381002,134.91,134.87,0.7]
[1763674040689,11.97381002,134.9,134.87,18.82096]
[1763674041067,11.97381002,134.91,134.88,18.81096]
[1763674041473,11.97381002,134.9,134.88,18.81096]
[1763674041990,11.97381002,134.9,134.88,0.69]
[1763674042174,11.97381002,134.9,134.89,0.69]
[1763674042688,0.19,134.95,134.89,0.69]
[1763674042860,11.97381002,134.91,134.89,0.69]
[1763674044999,11.97381002,134.92,134.89,2.47]
[1763674045163,9.3691085,134.92,134.89,2.47]
[1763674045367,9.3691085,134.92,134.9,0.69]
[1763674046277,0.21324235,134.96,134.9,0.69]
[1763674046472,11.97381002,134.92,134.9,0.69]
[1763674047194,0.21324235,134.96,134.9,0.69]
[1763674047492,11.97381002,134.92,134.9,0.69]
[1763674047697,0.21324235,134.96,134.87,0.7]
[1763674047698,11.97381002,134.91,134.87,0.7]
[1763674047918,11.97381002,134.91,134.88,1.78]
[1763674048220,11.97381002,134.91,134.9,18.12096]
[1763674048568,11.97381002,134.91,134.9,18.82096]
[1763674048906,11.97381002,134.91,134.9,18.12096]
[1763674049205,0.19,134.94,134.88,61.2]
[1763674049371,11.97381002,134.9,134.88,2.48]
[1763674050278,11.97381002,134.9,134.89,18.82096]
[1763674051104,11.97381002,134.9,134.89,18.12096]
[1763674051280,0.14216157,134.9,134.88,18.12096]
[1763674051606,11.97381002,134.89,134.88,18.80096]
[1763674052492,11.97381002,134.9,134.88,18.80096]
[1763674052678,11.97381002,134.9,134.89,0.68]
[1763674052877,1.78,134.94,134.89,0.68]
[1763674053077,5.20109726,134.96,134.9,1.78]
[1763674053292,10.35288368,134.95,134.91,0.68]
[1763674053491,0.14216157,134.93,134.92,18.12096]
[1763674053886,0.14216157,134.93,134.92,18.80096]
[1763674054272,12.11597159,134.93,134.92,18.80096]
[1763674054473,12.11597159,134.93,134.9,0.68]
[1763674054697,12.11597159,134.91,134.9,0.68]
[1763674055075,12.11597159,134.91,134.89,19.90096]
[1763674055076,0.14216157,134.9,134.89,18.12096]
[1763674055393,5.51612751,134.91,134.89,18.12096]
[1763674055786,5.51612751,134.91,134.9,0.68]
[1763674057188,5.51612751,134.91,134.89,18.12096]
[1763674057496,9.13033966,134.9,134.89,18.12096]
[1763674057688,0.14216157,134.9,134.89,18.80096]
[1763674058886,0.14216157,134.89,134.87,0.68]
[1763674059088,0.14216157,134.89,134.81,61.2]
[1763674059089,0.14216157,134.87,134.86,0.68]
[1763674059282,5.15833299,134.87,134.82,0.68]
[1763674059495,5.01617142,134.84,134.83,0.68]
[1763674059698,5.01617142,134.84,134.8,0.68]
[1763674059884,5.01617142,134.84,134.82,18.12096]
[1763674060088,1.78,134.88,134.82,18.12096]
[1763674060285,5.01617142,134.83,134.82,18.12096]
[1763674060780,5.01617142,134.83,134.82,18.80096]
[1763674060990,5.01617142,134.83,134.82,0.68]
[1763674061188,5.01617142,134.83,134.81,1.78]
[1763674061386,5.01617142,134.82,134.79,0.68]
[1763674061586,5.01617142,134.81,134.79,2.46]
[1763674061792,5.01617142,134.81,134.79,20.58096]
[1763674062081,5.01617142,134.81,134.8,18.80096]
[1763674062505,5.01617142,134.81,134.78,1.78]
[1763674062695,5.01617142,134.81,134.78,2.46]
[1763674062888,5.01617142,134.8,134.79,18.80096]
[1763674063095,5.01617142,134.81,134.79,18.80096]
[1763674063606,5.01617142,134.81,134.8,18.12096]
[1763674063791,5.01617142,134.81,134.8,18.80096]
[1763674064202,5.01617142,134.81,134.8,0.68]
[1763674064399,5.01617142,134.81,134.76,2.46]
[1763674064598,5.01617142,134.8,134.77,0.68]
[1763674064899,5.01617142,134.78,134.74,0.68]
[1763674065104,5.01617142,134.77,134.74,0.68]